bitfinex-derivatives/quotes_SOLF0:USTF0_20260308
["timestamp","ask_amount","ask_price","bid_price","bid_amount"]
[1773005001377,5.54726333,81.919,81.887,10.991]
[1773005002170,5.54726333,81.919,81.888,1.3339428]
[1773005003373,5.54726333,81.919,81.893,10.99]
[1773005004584,5.54726333,81.929,81.893,10.99]
[1773005004877,5.54726333,81.929,81.893,12.33816563]
[1773005006580,5.54726333,81.929,81.893,10.99]
[1773005007382,5.54726333,81.919,81.882,10.991]
[1773005007578,5.54726333,81.919,81.882,12.33893717]
[1773005009281,5.54726333,81.919,81.885,10.991]
[1773005012986,5.54726333,81.919,81.885,12.31961067]
[1773005015088,5.54726333,81.919,81.844,1.34223686]
[1773005015287,5.54726333,81.919,81.861,1.34223686]
[1773005016088,5.54726333,81.919,81.872,12.33594629]
[1773005016288,5.54726333,81.919,81.873,1.34294629]
[1773005019995,5.97841826,81.899,81.864,10.994]
[1773005020201,5.97841826,81.889,81.841,1.34812836]
[1773005021388,5.97841826,81.909,81.861,1.35470899]
[1773005022800,5.97841826,81.909,81.868,1.36278242]
[1773005022997,5.97841826,81.919,81.871,1.36278242]
[1773005023799,5.97841826,81.919,81.872,12.54899449]
[1773005024603,5.97841826,81.919,81.874,10.992]
[1773005031605,5.97841826,81.919,81.874,12.60988092]
[1773005032207,5.97841826,81.919,81.878,10.992]
[1773005032405,5.97841826,81.919,81.879,1.61788092]
[1773005032804,5.97841826,81.919,81.883,10.991]
[1773005040807,5.97841826,81.919,81.887,1.67657589]
[1773005041208,5.97841826,81.919,81.871,1.67657589]
[1773005041803,5.97841826,81.928,81.884,1.67873673]
[1773005042805,5.97841826,81.928,81.885,12.67085404]
[1773005043012,5.97841826,81.928,81.886,1.67985404]
[1773005043713,6.17992498,81.938,81.897,1.68203656]
[1773005043908,6.17992498,81.938,81.901,1.68203656]
[1773005044114,6.17992498,81.954,81.911,1.68203656]
[1773005045511,6.17992498,81.954,81.912,10.987]
[1773005045711,3.81565076,81.95,81.913,1.67632458]
[1773005045907,5.84855913,81.949,81.913,1.67632458]
[1773005046112,5.84855913,81.949,81.891,1.67944892]
[1773005046813,5.84855913,81.949,81.911,1.68208923]
[1773005047914,5.84855913,81.949,81.915,1.66115256]
[1773005051022,5.84855913,81.949,81.901,1.69912518]
[1773005051920,5.84855913,81.949,81.901,12.68812518]
[1773005052422,5.84855913,81.949,81.902,1.72493031]
[1773005052816,5.84855913,81.949,81.906,1.7276514]
[1773005053720,5.84855913,81.949,81.911,1.72927441]
[1773005055123,14.79665076,81.96,81.91,14.80365076]
[1773005055124,5.84855913,81.959,81.915,1.73198321]
[1773005056926,5.84855913,81.959,81.916,10.987]
[1773005058129,5.84855913,81.959,81.918,12.74816678]
[1773005060331,5.84855913,81.959,81.924,1.82265655]
[1773005061034,5.84855913,81.996,81.951,1.82512408]
[1773005061426,5.84855913,81.989,81.941,1.82392523]
[1773005061626,5.84855913,81.989,81.951,1.8263923]
[1773005062624,5.84855913,82.023,81.971,1.82631148]
[1773005062824,5.84855913,82.009,81.97,3.8114249]
[1773005063025,5.84855913,82.023,81.99,3.8114249]
[1773005063224,5.84855913,82.023,81.984,1.82885077]
[1773005063629,5.84855913,82.023,81.99,3.8114249]
[1773005063827,5.84855913,82.039,81.991,1.99119075]
[1773005064536,5.84855913,82.048,81.991,1.99119075]
[1773005064726,3.8114249,82.03,81.991,1.99119075]
[1773005064930,5.84855913,82.029,81.991,1.99119075]
[1773005065230,11.1350856,82.09,81.935,21.969]
[1773005065231,3.8114249,82.05,82.001,1.99362466]
[1773005065530,2.12174422,82.08,81.935,21.969]
[1773005065531,5.84855913,82.039,81.992,1.98151188]
[1773005066236,5.84855913,82.039,81.994,1.98391815]
[1773005067836,5.84855913,82.039,81.995,10.976]
[1773005068132,5.84855913,82.039,81.995,12.84374987]
[1773005071234,5.84855913,82.052,82.001,1.96209519]
[1773005071535,2.12154373,82.08,81.99,3.8114249]
[1773005071536,5.84855913,82.039,81.99,5.83044949]
[1773005072136,5.84855913,82.039,81.991,2.02123491]
[1773005072934,5.9956858,82.053,82.011,2.01951115]
[1773005074843,5.9956858,82.053,82.012,10.974]
[1773005075142,5.9956858,82.053,82.013,2.0010054]
[1773005075343,5.9956858,82.068,82.03,3.8114249]
[1773005076040,5.9956858,82.068,82.031,1.93173841]
[1773005078542,5.9956858,82.099,82.041,1.98927136]
[1773005078738,5.9956858,82.069,82.021,1.99135074]
[1773005079342,5.9956858,82.069,82.022,12.96435074]
[1773005080345,5.9956858,82.069,82.023,1.68148003]
[1773005080742,10.02679389,82.122,81.986,21.955]
[1773005080743,5.9956858,82.081,82.034,1.68351878]
[1773005080943,5.9956858,82.079,82.034,1.68351878]
[1773005081748,5.9956858,82.079,82.036,10.971]
[1773005082650,3.8114249,82.07,82.029,1.60161199]
[1773005082849,3.8114249,82.06,82.015,1.60161199]
[1773005083554,5.9956858,82.069,82.015,1.60161199]
[1773005083754,5.9956858,82.069,82.03,10.972]
[1773005083954,5.9956858,82.059,82.021,1.59624201]
[1773005084551,5.9956858,82.059,82.011,10.974]
[1773005084753,5.9956858,82.049,82.011,10.974]
[1773005086457,3.8114249,82.04,82.011,10.974]
[1773005086857,3.8114249,82.04,82.007,1.59613325]
[1773005090454,5.9956858,82.029,81.989,10.977]
[1773005090659,5.9956858,82.029,81.989,12.45438559]
[1773005090858,5.9956858,82.029,81.99,1.47738559]
[1773005091861,5.9956858,82.029,81.995,10.976]
[1773005096662,5.9956858,82.029,81.98,3.8114249]
[1773005096868,5.9956858,82.029,81.981,10.978]
[1773005097363,5.9956858,82.029,81.985,12.52886331]
[1773005097661,5.9956858,82.029,81.986,1.55086331]
[1773005097862,5.9956858,82.039,81.991,1.55261937]
[1773005098869,5.9956858,82.039,81.996,10.976]
[1773005099269,5.9956858,82.039,81.996,12.53025869]
[1773005100264,294.0,82.083,81.996,12.53025869]
[1773005100265,5.9956858,82.029,81.996,10.976]
[1773005102073,5.9956858,82.043,82.007,12.54870891]
[1773005102372,5.9956858,82.043,82.0,3.8114249]
[1773005102574,5.9956858,82.043,81.997,1.57370891]
[1773005103872,5.9956858,82.043,82.002,1.33203708]
[1773005104973,5.9956858,82.043,82.005,10.975]
[1773005105168,3.8114249,82.04,81.99,3.8114249]
[1773005105370,5.75788022,82.039,81.99,5.14493492]
[1773005106975,5.75788022,82.039,81.997,10.976]
[1773005108373,6.14903041,82.029,81.997,10.976]
[1773005110971,6.14903041,82.029,81.98,10.978]
[1773005111275,6.14903041,82.019,81.98,10.978]
[1773005112274,6.14903041,81.999,81.956,1.34269556]
[1773005113773,6.14903041,81.999,81.958,10.981]
[1773005116882,6.14903041,81.989,81.941,1.34764525]
[1773005121177,6.14903041,81.979,81.941,1.34764525]
[1773005125190,6.14903041,81.979,81.94,10.984]
[1773005126888,6.14903041,81.979,81.94,14.79317535]
[1773005127191,6.14903041,81.989,81.945,1.38160409]
[1773005127794,6.14903041,81.989,81.946,10.983]
[1773005128788,11.1350856,82.045,81.9,62.0]
[1773005128789,6.14903041,81.979,81.936,10.984]
[1773005128994,6.14903041,81.979,81.936,12.37803093]
[1773005129192,6.14903041,81.979,81.937,1.39403093]
[1773005130294,3.80917535,81.99,81.948,1.36047124]
[1773005130489,6.14903041,81.979,81.931,1.36037972]
[1773005131798,6.14903041,81.979,81.933,12.3562489]
[1773005132191,6.14903041,81.979,81.934,1.3712489]
[1773005133791,6.14903041,81.979,81.935,10.984]
[1773005133991,6.14903041,81.979,81.935,12.35656095]
[1773005137298,6.14903041,81.979,81.935,10.984]
[1773005137502,5.93949043,81.969,81.921,1.31304457]
[1773005137699,5.93949043,81.981,81.941,1.31414404]
[1773005138701,5.93949043,81.981,81.944,1.31518749]
[1773005139401,5.93949043,81.999,81.951,1.31518749]
[1773005140204,5.93949043,81.999,81.953,10.982]
[1773005141103,5.93949043,81.999,81.953,12.26857787]
[1773005142504,5.93949043,81.999,81.955,10.982]
[1773005142704,5.93949043,81.999,81.96,3.80917535]
[1773005144503,5.93949043,81.999,81.963,12.26129441]
[1773005144704,5.93949043,81.999,81.963,10.981]
[1773005148310,5.93949043,82.019,81.981,10.978]
[1773005148605,5.93949043,82.039,81.991,1.33393846]
[1773005148908,5.93949043,82.039,82.0,3.80917535]
[1773005150912,5.93949043,82.039,82.002,10.975]
[1773005151106,5.93949043,82.039,82.0,3.80917535]
[1773005151803,5.93949043,82.039,82.001,1.43365877]
[1773005156214,5.93949043,82.039,82.0,3.80917535]
[1773005158619,5.93949043,82.036,81.99,3.80917535]
[1773005158815,5.93949043,82.019,81.971,1.43401651]
[1773005159218,5.93949043,82.019,81.976,1.43401651]
[1773005160418,5.93949043,82.019,81.971,10.98]
[1773005160616,5.93949043,82.009,81.964,1.43392957]
[1773005161528,5.93949043,82.009,81.967,10.98]
[1773005162023,5.93949043,82.009,81.964,1.43392957]
[1773005166930,5.93949043,82.009,81.97,3.80917535]
[1773005167230,5.93949043,82.009,81.97,5.08030173]
[1773005167427,5.93949043,82.009,81.98,3.80917535]
[1773005168321,5.93949043,82.009,81.971,12.25012638]
[1773005168322,6.38026179,82.031,81.99,5.08441617]
[1773005170824,6.38026179,82.029,81.981,10.978]
[1773005175731,6.38026179,82.029,81.981,12.20724302]
[1773005177424,6.38026179,82.029,81.986,10.977]
[1773005179632,6.38026179,82.028,81.982,1.23036332]
[1773005180839,6.38026179,82.028,81.983,10.978]
[1773005183542,6.38026179,82.028,81.99,10.977]
[1773005184342,6.38026179,82.028,81.981,1.26119407]
[1773005185743,6.38026179,82.028,81.983,10.978]
[1773005185944,6.38026179,82.028,81.983,12.24030306]
[1773005188153,6.38026179,82.028,81.986,10.977]
[1773005191157,6.38026179,82.028,81.986,12.23644238]
[1773005192854,6.38026179,82.028,81.994,10.976]
[1773005197560,6.38026179,82.028,81.987,1.31882793]
[1773005198757,6.38026179,82.028,81.988,10.977]
[1773005200657,6.38026179,82.028,81.989,1.32399608]
[1773005201756,5.86366174,82.019,81.981,1.3236779]
[1773005206570,5.86366174,82.019,81.971,1.32382996]
[1773005206869,5.86366174,82.009,81.971,1.32382996]
[1773005207471,5.86366174,82.009,81.978,10.979]
[1773005207667,5.86366174,82.009,81.971,1.32382996]
[1773005208872,5.86366174,82.009,81.974,1.62030967]
[1773005209470,10.971,82.036,81.974,1.62030967]
[1773005209471,5.86366174,82.018,81.974,1.62030967]
[1773005209879,5.86366174,82.018,81.976,1.73789584]
[1773005210677,5.86366174,82.018,81.98,3.80536892]
[1773005210873,5.86366174,82.018,81.981,1.73822019]
[1773005211078,5.86366174,82.018,81.985,1.73822019]
[1773005214179,5.86366174,82.018,81.975,10.979]
[1773005215479,5.86366174,82.018,81.976,1.75154662]
[1773005220284,5.86366174,82.018,81.977,10.979]
[1773005222891,5.86366174,82.018,81.977,12.71346615]
[1773005223085,6.09192666,82.028,81.991,1.73446615]
[1773005223288,3.80536892,82.04,81.991,1.73446615]
[1773005223289,6.09192666,82.039,81.991,1.73446615]
[1773005223588,6.09192666,82.039,82.01,3.80536892]
[1773005223783,6.09192666,82.039,82.001,1.73446615]
[1773005224589,3.80536892,82.05,82.014,1.73424384]
[1773005224590,6.09192666,82.05,82.014,1.73424384]
[1773005225885,6.09192666,82.05,82.015,10.974]
[1773005229286,6.09451757,82.08,82.02,3.80536892]
[1773005229491,6.09451757,82.069,82.031,1.81805665]
[1773005230182,6.09451757,82.069,82.02,3.80536892]
[1773005230590,6.09451757,82.069,82.02,5.62326033]
[1773005230790,6.09451757,82.069,82.033,10.971]
[1773005232590,6.09451757,82.083,82.04,12.83908906]
[1773005232992,6.09451757,82.083,82.04,5.67445798]
[1773005233396,6.09451757,82.079,82.03,3.80536892]
[1773005233590,6.09451757,82.069,82.021,1.86306132]
[1773005234795,6.09451757,82.069,82.032,10.971]
[1773005239097,6.09451757,82.059,82.024,10.972]
[1773005242902,6.09451757,82.059,82.021,10.973]
[1773005243903,6.09451757,82.059,82.029,10.972]
[1773005249610,6.09451757,82.049,82.021,10.973]
[1773005250004,6.09451757,82.049,82.005,1.86007167]
[1773005250605,6.09451757,82.049,82.011,1.86031216]
[1773005250908,6.09451757,82.049,82.013,12.83450128]
[1773005251511,6.09451757,82.062,82.021,1.75980008]
[1773005252905,6.09451757,82.062,82.032,10.971]
[1773005255801,6.09451757,82.062,82.024,10.972]
[1773005256006,6.16359647,82.059,82.024,10.972]
[1773005258404,6.16359647,82.059,82.016,10.973]
[1773005259209,6.16359647,82.059,82.023,10.973]
[1773005259809,6.16359647,82.059,82.027,1.88394366]
[1773005260208,6.16359647,82.059,82.031,10.971]
[1773005261716,6.16359647,82.059,82.018,1.88435741]
[1773005262105,6.16359647,82.059,82.025,10.972]
[1773005271418,6.16359647,82.059,81.989,21.955]
[1773005271419,6.16359647,82.059,82.017,10.973]
[1773005271716,6.16359647,82.039,82.0,1.9400978]
[1773005272821,6.16359647,82.039,82.0,12.9160978]
[1773005275619,6.16359647,82.039,82.002,10.975]
[1773005275819,6.16359647,82.039,82.002,12.92321588]
[1773005277925,6.16359647,82.039,82.006,10.975]
[1773005284818,6.16359647,82.039,82.006,12.93620595]
[1773005286029,6.16359647,82.039,82.008,10.975]
[1773005295131,6.16359647,82.039,82.008,12.89135879]
[1773005299138,6.16359647,82.039,82.012,10.974]
[1773005315641,6.0924448,82.037,82.005,10.975]
[1773005315845,16.25782066,82.036,82.005,10.975]
[1773005316040,6.0924448,82.036,82.005,10.975]
[1773005318252,6.0924448,82.036,82.005,12.84594433]
[1773005322147,6.0924448,82.036,81.997,10.976]
[1773005323148,6.0924448,82.036,81.998,1.87392546]
[1773005323352,6.0924448,82.029,81.998,1.87392546]
[1773005331257,6.0924448,82.029,81.999,10.976]
[1773005336064,6.0924448,82.029,81.98,3.80400531]
[1773005336270,6.0924448,82.009,81.977,1.84458494]
[1773005337764,6.0924448,82.009,81.983,10.978]
[1773005340974,6.0924448,81.999,81.972,10.979]
[1773005343872,6.0924448,81.999,81.973,1.85049844]
[1773005353779,6.0924448,81.999,81.974,10.979]
[1773005358790,6.0924448,81.999,81.973,1.85049844]
[1773005360791,6.0924448,81.999,81.974,1.74574971]
[1773005369600,6.0924448,81.999,81.973,10.979]
[1773005369998,6.22506478,81.989,81.937,1.63857494]
[1773005370206,6.22506478,81.989,81.941,1.63857494]
[1773005371905,6.22506478,81.989,81.953,10.982]
[1773005372502,6.22506478,81.989,81.961,1.62025228]
[1773005372710,6.22506478,82.002,81.961,1.62025228]
[1773005373805,6.22506478,82.002,81.964,10.98]
[1773005375310,6.22506478,82.002,81.964,12.59002273]
[1773005380211,6.22506478,82.002,81.968,10.98]
[1773005381310,6.22506478,82.002,81.91,12.19]
[1773005381311,5.84181469,81.989,81.931,1.59028582]
[1773005381611,5.84181469,81.979,81.931,1.59028582]
[1773005382816,5.84181469,81.979,81.942,10.983]
[1773005385221,5.84181469,81.969,81.934,10.984]
[1773005388319,5.84181469,81.969,81.936,12.54463796]
[1773005390520,5.84181469,81.969,81.927,1.56301915]
[1773005391820,5.84181469,81.969,81.929,1.49459378]
[1773005392824,5.84181469,81.969,81.931,12.47636689]
[1773005394322,5.84181469,81.969,81.933,10.985]
[1773005395122,9.64911835,81.98,81.939,1.46534471]
[1773005395325,5.84181469,81.98,81.941,1.46534471]
[1773005396824,5.84181469,81.98,81.951,1.40471132]
[1773005399925,5.84181469,81.98,81.952,10.982]
[1773005401122,5.84181469,81.989,81.955,1.37657024]
[1773005402428,5.84181469,81.989,81.95,3.80730366]
[1773005402725,11.19249634,82.018,81.888,2.12338191]
[1773005402726,3.80730366,82.02,81.971,6.1685336]
[1773005403424,3.80730366,82.03,81.981,6.07167526]
[1773005403725,3.80730366,82.04,81.991,6.07167526]
[1773005403930,10.1673543,82.039,81.991,6.07167526]
[1773005404126,10.1673543,82.038,81.991,6.07167526]
[1773005404429,10.1673543,82.037,81.991,6.07167526]
[1773005404629,6.01440579,82.035,81.991,6.07167526]
[1773005405930,6.0324778,82.029,81.991,6.07167526]
[1773005412233,6.0324778,82.042,82.01,3.80730366]
[1773005412535,6.0324778,82.042,82.001,5.89631341]
[1773005413939,6.0324778,82.054,82.011,5.89631341]
[1773005414838,6.0324778,82.054,82.016,10.973]
[1773005416038,6.0324778,82.054,82.016,16.86931341]
[1773005418134,6.0324778,82.054,82.017,5.89631341]
[1773005418332,6.0324778,82.054,82.018,16.86931341]
[1773005419835,6.0324778,82.049,82.018,10.973]
[1773005421840,6.0324778,82.039,81.998,5.89631341]
[1773005422939,6.0324778,82.039,82.001,10.976]
[1773005423433,3.80730366,82.03,81.998,5.89631341]
[1773005423640,3.80730366,82.03,81.992,10.977]
[1773005423641,6.0324778,82.029,81.992,10.977]
[1773005424042,6.0324778,82.029,81.992,16.87331341]
[1773005424243,6.0324778,82.029,81.994,16.87231341]
[1773005424446,6.0324778,82.029,81.995,5.89631341]
[1773005431250,6.0324778,82.029,81.997,5.89631341]
[1773005432053,6.0324778,82.029,81.987,5.89631341]
[1773005434052,5.29617313,82.019,81.978,10.979]
[1773005434653,5.29617313,82.019,81.982,5.56279412]
[1773005435954,5.29617313,82.019,81.984,5.56279412]
[1773005436751,5.29617313,82.019,81.986,5.56279412]
[1773005443659,5.29617313,82.019,81.978,5.56279412]
[1773005445758,5.29617313,82.009,81.977,10.979]
[1773005447961,5.29617313,82.018,81.981,5.56279412]
[1773005449766,5.29617313,82.018,81.988,10.977]
[1773005449967,5.29617313,82.018,81.981,5.56279412]
[1773005451565,5.29617313,82.018,81.98,10.978]
[1773005453664,5.29617313,82.009,81.971,5.56279412]
[1773005454058,5.29617313,81.999,81.948,5.56279412]
[1773005454368,5.29617313,81.989,81.948,5.56279412]
[1773005454568,3.80509022,81.98,81.948,5.56279412]
[1773005455973,5.29617313,81.979,81.939,10.984]
[1773005456167,5.29617313,81.979,81.94,5.56279412]
[1773005457568,5.29617313,81.979,81.93,3.80509022]
[1773005457569,5.29617313,81.979,81.942,5.56279412]
[1773005459061,5.29617313,81.979,81.941,10.984]
[1773005459466,11.19249634,82.019,81.932,5.56279412]
[1773005459467,9.10126335,81.97,81.932,5.56279412]
[1773005460173,5.29617313,81.97,81.932,5.56279412]
[1773005460776,5.29617313,81.97,81.935,10.984]
[1773005461266,5.29617313,81.969,81.921,16.5062637]
[1773005461466,5.29617313,81.959,81.911,5.5202637]
[1773005461670,5.29617313,81.969,81.921,5.52087504]
[1773005462364,5.29617313,81.969,81.878,2.12363459]
[1773005462365,5.29617313,81.969,81.923,5.49336556]
[1773005463871,14.99094711,82.02,81.878,2.12363459]
[1773005463872,3.80509022,82.0,81.951,5.02692074]
[1773005464067,5.07350094,81.999,81.96,3.80509022]
[1773005464264,5.07350094,81.989,81.951,5.02692074]
[1773005466772,5.07350094,81.989,81.952,4.96406498]
[1773005472074,3.80509022,81.98,81.945,4.96406498]
[1773005472274,5.07350094,81.989,81.951,4.96406498]
[1773005473877,5.07350094,81.989,81.953,4.96406498]
[1773005478181,5.07350094,81.989,81.955,4.96406498]
[1773005479680,4.8264021,82.003,81.94,3.80509022]
[1773005479889,4.8264021,82.016,81.96,3.80509022]
[1773005480077,4.8264021,82.009,81.961,4.96406498]
[1773005480880,4.8264021,82.009,81.969,10.98]
[1773005481181,4.8264021,82.009,81.969,15.94406498]
[1773005482781,4.8264021,82.009,81.97,4.96406498]
[1773005486382,4.8264021,82.009,81.972,4.96406498]
[1773005487585,4.8264021,82.009,81.974,4.94941276]
[1773005489290,4.8264021,82.019,81.978,4.91097814]
[1773005490897,4.8264021,82.019,81.981,4.87534175]
[1773005493198,4.52107973,82.041,81.985,4.42558746]
[1773005493404,4.52107973,82.029,81.985,4.42558746]
[1773005494803,4.52107973,82.029,81.988,4.42558746]
[1773005498101,3.80707401,82.02,81.988,4.42558746]
[1773005498500,4.52107973,82.029,81.988,4.42558746]
[1773005511009,4.52107973,82.029,81.994,4.42558746]
[1773005511216,4.52107973,82.037,81.994,4.42558746]
[1773005512811,4.52107973,82.037,81.999,4.42558746]
[1773005513912,3.80707401,82.04,82.001,4.37314308]
[1773005514912,3.80707401,82.04,82.004,4.35950126]
[1773005515818,3.80707401,82.04,82.01,4.35215811]
[1773005516015,3.80707401,82.04,82.009,10.974]
[1773005516016,4.52107973,82.039,81.991,4.35215811]
[1773005516215,8.32815374,82.03,81.991,4.35215811]
[1773005516908,4.52107973,82.03,81.991,4.35215811]
[1773005517917,4.52107973,82.03,81.994,4.32598803]
[1773005518916,4.52107973,82.03,81.999,4.31295264]
[1773005519822,4.52107973,82.03,82.001,4.31955333]
[1773005520521,4.52107973,82.039,82.001,4.31955333]
[1773005521422,4.52107973,82.063,82.011,4.30678731]
[1773005521717,3.80707401,82.06,82.011,4.30678731]
[1773005522525,4.52107973,82.054,82.014,10.974]
[1773005522818,4.52107973,82.054,82.015,4.2943796]
[1773005525727,4.41599607,82.039,82.014,10.974]
[1773005529821,3.80707401,82.06,82.032,4.15707066]
[1773005531020,4.41599607,82.068,82.032,4.15707066]
[1773005531224,3.80707401,82.06,82.032,4.15707066]
[1773005531923,4.41599607,82.079,82.035,4.15294705]
[1773005532223,3.80707401,82.07,82.035,4.15294705]
[1773005532727,8.22307008,82.07,82.035,4.15294705]
[1773005533916,4.41599607,82.069,82.035,4.15294705]
[1773005536231,2.12085846,82.106,82.022,4.1879085]
[1773005536232,3.80707401,82.05,82.022,4.1879085]
[1773005536432,8.22307008,82.05,82.001,4.1879085]
[1773005537827,8.22307008,82.05,82.02,10.973]
[1773005539132,4.41599607,82.059,82.023,4.17128468]
[1773005539739,4.41599607,82.059,82.024,10.972]
[1773005541739,4.41599607,82.083,82.027,4.11327029]
[1773005541936,4.41599607,82.059,82.017,4.11327029]
[1773005542340,4.41599607,82.049,82.007,4.11327029]
[1773005543734,4.41599607,82.049,82.016,10.973]
[1773005544136,4.41599607,82.039,81.996,4.21472993]
[1773005544440,4.41599607,82.029,81.996,4.21472993]
[1773005544640,4.41599607,82.029,81.986,4.21502229]
[1773005544840,3.80707401,82.02,81.986,4.21502229]
[1773005545747,3.80547792,82.02,81.99,10.977]
[1773005546336,4.41599607,82.029,81.99,10.977]
[1773005550157,8.22147399,82.04,81.998,4.27038758]
[1773005550450,3.80547792,82.05,82.001,4.27038758]
[1773005550651,4.41599607,82.051,82.001,4.27038758]
[1773005551847,4.41599607,82.051,82.012,4.38961016]
[1773005552846,4.40250088,82.039,81.997,4.29472828]
[1773005554751,4.40250088,82.039,81.998,10.976]
[1773005555245,4.40250088,82.029,81.998,10.976]
[1773005561353,4.40250088,82.029,81.99,10.977]
[1773005567064,4.40250088,82.029,81.991,4.29472828]
[1773005576776,4.40250088,82.042,82.0,3.80547792]
[1773005577068,4.40250088,82.042,82.001,4.29472828]
[1773005577872,4.40250088,82.042,82.005,4.29472828]
[1773005586082,3.80547792,82.05,82.005,4.29472828]
[1773005586286,4.07326035,82.052,82.011,4.27049091]
[1773005587885,4.07326035,82.052,82.015,4.27049091]
[1773005590485,4.07326035,82.049,82.015,4.27049091]
[1773005611494,4.07326035,82.039,81.999,4.24368725]
[1773005612193,3.80346228,82.03,81.999,4.24368725]
[1773005613794,4.17194485,82.049,82.001,3.84619065]
[1773005613994,4.17194485,82.059,82.001,3.84619065]
[1773005614195,4.17194485,82.057,82.001,3.84619065]
[1773005614395,4.17194485,82.057,82.011,3.84619065]
[1773005614895,4.17194485,82.057,82.013,3.84619065]
[1773005615791,4.17194485,82.057,82.016,3.84619065]
[1773005616196,4.17194485,82.049,82.016,3.84619065]
[1773005621998,4.17194485,82.058,82.019,3.84619065]
[1773005622198,10.1404093,82.057,82.019,3.84619065]
[1773005622392,4.17194485,82.058,82.019,3.84619065]
[1773005622593,10.14085398,82.057,82.019,3.84619065]
[1773005622797,4.17194485,82.058,82.019,3.84619065]
[1773005622998,4.17194485,82.056,82.021,10.973]
[1773005623195,4.17194485,82.049,82.008,3.84619065]
[1773005624905,4.17194485,82.049,82.01,3.84619065]
[1773005626406,4.17194485,82.049,82.015,10.974]
[1773005633217,4.17194485,82.049,82.015,14.82019065]
[1773005634314,4.17194485,82.049,82.016,3.84619065]
[1773005640622,4.17194485,82.039,81.981,3.84619065]
[1773005640918,3.80346228,82.03,81.981,3.84619065]
[1773005641313,7.97540713,82.03,81.981,3.84619065]
[1773005641819,7.97540713,82.03,82.0,3.84619065]
[1773005642117,3.80346228,82.02,82.0,3.84619065]
[1773005642319,0.00046228,82.02,82.0,3.84619065]
[1773005643314,4.12664114,82.02,81.991,3.9039031]
[1773005650726,4.12617886,82.02,81.991,3.9039031]
[1773005653929,4.02478722,82.031,81.995,3.89713914]
[1773005654132,4.02478722,82.056,82.001,3.89713914]
[1773005654322,4.02478722,82.049,82.001,3.89713914]
[1773005655033,22.0573005,82.097,81.935,37.76773566]
[1773005655034,3.80346228,82.03,81.998,3.89451517]
[1773005656626,3.80346228,82.03,81.98,3.80346228]
[1773005656627,3.80346228,82.03,82.0,3.89125503]
[1773005657826,7.8282495,82.03,82.0,3.89125503]
[1773005658031,4.02478722,82.029,82.0,3.89125503]
[1773005659028,3.80346228,82.02,81.989,3.87130841]
[1773005660521,3.80346228,82.02,81.991,3.86579585]
[1773005660727,4.02478722,82.029,81.991,3.86579585]
[1773005661235,4.02478722,82.019,81.984,3.86335231]
[1773005664234,4.02478722,82.039,81.992,3.84296194]
[1773005664436,10.969,82.047,81.992,3.84296194]
[1773005664437,4.02478722,82.029,81.992,3.84296194]
[1773005665731,4.02478722,82.029,81.999,10.976]
[1773005668740,4.02478722,82.039,82.0,3.83433702]
[1773005669440,4.02478722,82.039,82.001,14.8071184]
[1773005669637,4.02478722,82.039,82.002,3.8273778]
[1773005670141,4.02478722,82.049,82.006,3.82518466]
[1773005670340,10.968,82.056,82.006,3.82518466]
[1773005670341,4.02478722,82.039,82.006,3.82518466]
[1773005672844,4.02478722,82.039,82.006,14.80018466]
[1773005679746,4.02478722,82.039,81.98,3.80428974]
[1773005679943,3.98533594,82.029,81.978,3.78748673]
[1773005680753,3.98533594,82.029,81.98,3.78555535]
[1773005680948,3.98533594,82.019,81.98,3.78555535]
[1773005682049,3.98533594,82.019,81.982,3.7676108]
[1773005688153,3.98533594,82.019,81.983,10.978]
[1773005688355,3.98533594,82.019,81.983,14.70489631]
[1773005688550,3.98533594,82.019,81.983,3.72689631]
[1773005690051,3.98533594,82.019,81.976,3.73029194]
[1773005691757,3.98533594,82.019,81.98,10.978]
[1773005692056,3.98533594,82.019,81.98,14.65392806]
[1773005692557,3.98533594,82.019,81.983,3.67592806]
[1773005693758,3.98533594,82.019,81.987,10.977]
[1773005694661,3.98533594,82.009,81.961,3.63262288]
[1773005695662,7.78962568,81.99,81.952,3.60833225]
[1773005695856,3.98533594,81.989,81.952,3.60833225]
[1773005696458,3.98533594,81.989,81.944,10.983]
[1773005696653,3.98533594,81.989,81.945,3.60672727]
[1773005696863,3.98533594,81.969,81.93,3.60675596]
[1773005697764,3.98533594,81.969,81.93,7.4110457]
[1773005698063,3.98533594,81.949,81.9,3.80428974]
[1773005698266,3.98533594,81.939,81.901,3.62894297]
[1773005700662,3.98533594,81.96,81.92,3.80428974]
[1773005700967,3.98533594,81.979,81.931,3.53642864]
[1773005701563,3.98533594,81.959,81.911,3.53642864]
[1773005701858,296.57383035,81.987,81.93,3.80428974]
[1773005701859,3.98533594,81.979,81.93,3.80428974]